Workbook

Sheet Coversheet
A3: Financial Model
A4: Powerco Customised Price-Quality Path Proposal
A5: Draft Determination 16 November 2017
A17: Draft Decision v1

Sheet Description
A1: Description
B3: This model is published alongside the Commerce Commission's draft determination "[DRAFT] Powerco Limited Electricity Distribution Customised Price-Quality Path Determination 2018", and calculates the draft starting price of $278,559,000 that is set out in Schedule 1.1 of the draft determination.
B5: The model applies the price path methodologies set out in the Electricity Distributionj Input Methodologies (EDB IMs). It is derived from the model used in 2013 to calculate the CPP for Orion New Zealand Ltd, adjusted to include the applicable methodologies in subsequent EDB IM amendment determinations. The model calculates the starting price, and estimates the prices in each subsequent year of the regulatory period.
B7: Entry cell C2 of the Inputs worksheet is used to switch the model between one of two scenarios. ● Scenario 1 reproduces Powerco's calculations of its proposed price path with the alternative WACC described in section 18.3.7 of "Customised price-quality path (CPP) Main Proposal", Powerco, 12 May 2017. ● Scenario 2 is the draft price path determined by the Commission.

Sheet Table of Contents
A1: Table of Contents
B4: Sheet Name | C4: Link
B5: Inputs | C5: CPP Inputs Module
B6: RABx | C6: Regulatory Asset Base (RAB) Module
C7: Total Opening RAB value
C8: RAB roll-forward without revaluations
C9: TFVCA
C10: RAB proportionate investment
C11: Total revaluation
C12: Total depreciation
C13: Total opening RAB value without revaluations
C14: Total adjusted depreciation
B15: TAXx | C15: Regulatory Tax Module
C16: Forecast regulatory tax allowance
C17: Regulatory profit / (loss) before tax
C18: Permanent differences
C19: Regulatory tax adjustments
B20: DTAXx | C20: Deferred Tax Module
B21: BBARx | C21: Building Blocks Allowable Revenue (BBAR) Module
C22: Building Blocks Allowable Revenue Before Tax (BBAR Before Tax)
C23: Building Blocks Allowable Revenue After Tax (BBAR After Tax)
C24: Regulatory Investment Value
B25: MARx | C25: Maximum Allowable Revenue (MAR) Module
C26: Maximum Allowable Revenue Before Tax (MAR Before Tax)
C27: Maximum Allowable Revenue After Tax (MAR After Tax)
B28: Output | C28: CPP Outputs Module

Sheet Inputs
A1: CPP Inputs Module
A2: Scenario (enter 1 or 2) | C2: Draft determination | D2: =IF(C2="Proposed",1,IF(C2="Draft determination",2,NA())) -> 2 | E2: Note: To recalculate, click the 'MAR Goal Seek' macro button located on the MAR worksheet
D4: Assessment Period | F4: CPP Regulatory Period
A5: Ref. | B5: Input Name | C5: Discrete Input | D5: =E5-1 -> 2017 | E5: =$F$6-1 -> 2018 | F5: =$F$6 -> 2019 | G5: =F5+1 -> 2020 | H5: =G5+1 -> 2021 | I5: =IF($C$6>3,H5+1,"") -> 2022 | J5: =IF($C$6>4,I5+1,"") -> 2023 | K5: Description | L5: Input source
A6: Input1 | B6: CPP regulatory period | C6: 5 | F6: 2019 | K6: The period of continuous disclosure years in respect of which the customised price-quality path applies, and which follows the assessment period. Input the number of years in the regulatory period and the first year in the regulatory period. | L6: Commerce Commission decision.
A7: Input2 | B7: Allowed controllable opex | K7: A series of values ($000) for the CPP regulatory period where a single value for a disclosure year represents the allowance for operating expenditure for that year in categories specified by the Commission as controllable by the supplier. | L7: Not required in this model.
A8: Input3 | B8: ‘X’ factor | C8: 0 | K8: A single value (percentage 3 d.p.) representing the rate of change allowed for the maximum allowable revenue path where the path is expressed in ‘CPI-X’ terms. | L8: Commerce Commission decision.
A9: Input4 | B9: Pass-through costs | F9: 0 | G9: 0 | H9: 0 | I9: 0 | J9: 0 | K9: Future uncontrollable costs of the supplier which are to be treated as pass-through costs in each year of the CPP regulatory period in addition to those rates or levies already specified in cl. 3.1.2 of the EDB input methodologies. | L9: Not required in this model.
A10: Input5 | B10: Recoverable costs | F10: 0 | G10: 0 | H10: 0 | I10: 0 | J10: 0 | K10: A series of values ($000) which are the nominal amounts of verifier fees, auditor’s costs or engineer fees associated with the CPP process that are treated as recoverable costs for each of the disclosure years of the CPP regulatory period. | L10: Not required in this model.
A11: Input6 | B11: Cost of capital | D11: 0.0719 | E11: 0.0719 | F11: 0.0719 | G11: 0.0719 | H11: 0.0678 | I11: 0.0678 | J11: 0.0678 | K11: Discount rate (calculated as the 75th percentile estimate of WACC published most recently by the Commission prior to the submission of the CPP proposal in respect of the CPP regulatory period). | L11: For 2017– 2020: from "Cost of capital determination for electricity distribution businesses' DPPs", [2014] NZCC 28, 31 October 2014. For 2021–2023: CPP applicant proposal.
A12: Input7 | B12: Inflation rate | F12: 0.02106969206 | G12: 0.02152879479 | H12: 0.02097240471 | I12: 0.02027653323 | J12: 0.02 | K12: Series of values (percentage 3 d.p.) defined in cl. 3.3.1 of the EDB input methodologies. | L12: For 2017– 2020: from EDB DPP reset determination [2014] NZCC33. For 2021–2023: CPP applicant proposal.
A13: Input8 | B13: ΔQ | F13: 0 | G13: 0 | H13: 0 | I13: 0 | J13: 0 | K13: A series of values (percentage 3 d.p.) for the CPP regulatory period where a single value for a disclosure year represents the forecast weighted average growth in quantities from the preceding disclosure year to the current disclosure year. | L13: Not required in this model.
A14: Input9 | B14: Claw-back | C14: 0 | K14: A value ($000) representing the amount of shortfall (negative amount) or over-recovery (positive amount) of revenues relating to prices previously charged by the supplier to be recovered or returned from consumers during the CPP regulatory period. It is expressed in present value terms as at the commencement of the CPP regulatory period. | L14: Not required in this model.
A15: Input10 | B15: Term Credit Spread Differential Allowance | D15: =CHOOSE($D$2,D16,D17) -> 1859.667473 | E15: 1949.437343 | F15: 2103.156056 | G15: 2283.154945 | H15: 2432.503609 | I15: 2604.732922 | J15: 2798.030661 | K15: A series of values ($000) for the next period where a single value for a disclosure year relates to financing costs from long term debt.
A16: Input10.1 | D16: 1859.667473 | E16: 1949.437343 | F16: 2106.873882 | G16: 2297.835831 | H16: 2461.025472 | I16: 2645.185785 | J16: 2849.508758 | L16: CPP applicant data.
A17: Input10.2 | D17: 1859.667473 | E17: 1949.437343 | F17: 2103.156056 | G17: 2283.154945 | H17: 2432.503609 | I17: 2604.732922 | J17: 2798.030661 | L17: Commerce Commission analysis.
A18: Input11 | B18: TF | D18: 1.035227567 | E18: 1.035227567 | F18: 1.035227567 | G18: 1.035227567 | H18: 1.03325123 | I18: 1.03325123 | J18: 1.03325123 | K18: A series of values (3 d.p.) for the next period where a single value for a disclosure year represents the timing factor for cash flows, calculated as: (1 + cost of capital)182/365 | L18: Calculated from Input6.
A19: Input12 | B19: TFrev | D19: 1.028553621 | E19: 1.028553621 | F19: 1.028553621 | G19: 1.028553621 | H19: 1.026956565 | I19: 1.026956565 | J19: 1.026956565 | K19: A series of values (3 d.p.) for the next period where a single value for a disclosure year represents the timing factor for revenue cash flows, calculated as: (1 + cost of capital)148/365 | L19: Calculated from Input6.
A20: Input13 | B20: Forecast operating expenditure | D20: =CHOOSE($D$2,D21,D22) -> 77513.91298 | E20: 80778.80771 | F20: 92072.65918 | G20: 97311.47141 | H20: 99333.94379 | I20: 98112.79748 | J20: 97793.02301 | K20: A series of values ($000) for the next period where a single value for a disclosure year represents the EDB’s operating expenditure for that disclosure year expressed in nominal terms.
A21: Input13.1 | D21: 77513.91298 | E21: 80778.80771 | F21: 93297.96416 | G21: 98919.41899 | H21: 101339.8992 | I21: 100528.7882 | J21: 100257.4448 | L21: CPP applicant data.
A22: Input13.2 | D22: 77513.91298 | E22: 80778.80771 | F22: 92072.65918 | G22: 97311.47141 | H22: 99333.94379 | I22: 98112.79748 | J22: 97793.02301 | L22: Commerce Commission analysis.
A23: Input14 | B23: Other regulated income | D23: 0 | E23: 0 | F23: 0 | G23: 0 | H23: 0 | I23: 0 | J23: 0 | K23: No longer required following IM amendments [2016]NZCC24
A24: Input15 | B24: Corporate tax rate | D24: 0.28 | E24: 0.28 | F24: 0.28 | G24: 0.28 | H24: 0.28 | I24: 0.28 | J24: 0.28 | K24: A series of values (3 d.p.) for the next period where a single value for a disclosure year represents the rate of taxation applying to companies in that year. | L24: Defined in EDB IMs.
A25: Input16 | B25: Opening tax losses in the first year of the next period | D25: 0 | K25: A value ($000) for the first year of the next period which represents the carry forward tax losses from prior years that the Commission is satisfied that an EDB has incurred. | L25: CPP applicant data.
A26: Input17 | B26: Positive permanent differences | D26: 133.389519 | E26: 135.3163176 | F26: 137.5183732 | G26: 140.3259941 | H26: 143.2204668 | I26: 146.1419821 | J26: 149.0897654 | K26: A series of values ($000) for the next period where a single value for a disclosure year represents amounts of income which are permanently taxable but not included as regulatory profit / (loss) before tax, or amounts of expenditure which are permanently not tax deductible, in nominal terms for that year. | L26: CPP applicant data.
A27: Input18 | B27: Discretionary discounts and customer rebates | D27: 0 | E27: 0 | F27: 0 | G27: 0 | H27: 0 | I27: 0 | J27: 0 | K27: A series of values ($000) for the next period where a single value for a disclosure year represents the sum of expenditure allowed as a tax deduction in respect of payments or credits given to persons by an EDB because of those person’s direct or indirect ownership in the EDB, in nominal terms for that year. | L27: CPP applicant data.
A28: Input19 | B28: Negative permanent differences | D28: 0 | E28: 0 | F28: 0 | G28: 0 | H28: 0 | I28: 0 | J28: 0 | K28: A series of values ($000) for the next period where a single value for a disclosure year represents amounts of income which are permanently not taxable, or amounts of expenditure which are permanently tax deductible but not included as regulatory profit / (loss) before tax, in nominal terms for that year. | L28: CPP applicant data.
A29: Input20 | B29: Leverage | C29: 0.42 | K29: A value (percentage 0 d.p.) representing the assumed ratio of debt capital to total capital of the supplier, specified in the input methodologies for all EDBs as 44%. | L29: Specified by input methodologies.
A30: Input21 | B30: Cost of debt | D30: 0.0609 | E30: 0.0609 | F30: 0.0609 | G30: 0.0609 | H30: 0.057 | I30: 0.057 | J30: 0.057 | K30: A value (percentage 3 d.p.) representing the assumed cost of debt to the supplier for the next period, comprised of the risk free rate plus the debt premium. | L30: Defined in EDB IMs.
A31: Input22 | B31: Opening unamortised initial differences in asset values for most recent ID year | D31: 271614.543 | K31: A value ($000) which represents the amount of the opening unamortised initial differences in asset values for a supplier for the first disclosure year in the next period. | L31: CPP applicant data.
A32: Input23 | B32: Adjustment to opening unamortised initial differences in asset values for sold or acquired assets | D32: -1823.786883 | E32: -1741.395208 | F32: -1660.046602 | G32: -1579.731421 | H32: -1500.440159 | I32: -1422.163457 | J32: -1344.892109 | K32: A series of values ($000) for the next period where a single value for a disclosure year represents the adjustment required to the opening unamortised initial differences in asset values to account for assets sold or acquired in that year calculated with effect from their date of sale or acquisition. | L32: CPP applicant data.
A33: Input24 | B33: Weighted average remaining useful life of relevant assets | D33: 26 | E33: 25 | F33: 24 | G33: 23 | H33: 22 | I33: 21 | J33: 20 | K33: A series of values (2 d.p.) for the next period where a single value for a disclosure year represents the weighted average remaining useful life of all asset at the commencement of the year. | L33: CPP applicant data.
A34: Input25 | B34: Opening deferred tax for most recent ID year | D34: -49319.42728 | K34: A value ($000) which represents the amount of the opening deferred tax balance for a supplier for the first disclosure year of the next period. | L34: CPP applicant data.
A35: Input26 | B35: Tax depreciation | D35: =CHOOSE($D$2,D36,D37) -> 86116.09284 | E35: 65402.58089 | F35: 75326.74814 | G35: 94860.59712 | H35: 108117.7122 | I35: 123871.3695 | J35: 137838.0473 | K35: A series of values ($000) for the next period where a single value for a disclosure year represents the sum of the amounts determined for all assets of the EDB of the tax depreciation rules to the regulatory tax asset value for each asset in that disclosure year.
A36: Input26.1 | D36: 86116.09284 | E36: 65402.58089 | F36: 75529.05375 | G36: 95656.02492 | H36: 109659.6879 | I36: 126054.9832 | J36: 140612.6637 | L36: CPP applicant data.
A37: Input26.2 | D37: 86116.09284 | E37: 65402.58089 | F37: 75326.74814 | G37: 94860.59712 | H37: 108117.7122 | I37: 123871.3695 | J37: 137838.0473 | L37: Commerce Commission analysis.
A38: Input27 | B38: Positive temporary differences | D38: 1029.300673 | E38: 1040.645542 | F38: 1159.864697 | G38: 1313.994449 | H38: 1393.949946 | I38: 1437.851228 | J38: 1465.032685 | K38: A series of values ($000) for the next period where a single value for a disclosure year represents amounts of income which are temporarily taxable but not included as regulatory profit / (loss) before tax, or amounts of expenditure which are temporarily not tax deductible, in nominal terms for that year. | L38: CPP applicant data.
A39: Input28 | B39: Negative temporary differences | D39: 0 | E39: 0 | F39: 0 | G39: 0 | H39: 0 | I39: 0 | J39: 0 | K39: A series of values ($000) for the next period where a single value for a disclosure year represents amounts of income which are temporarily not taxable, or amounts of expenditure which are temporarily tax deductible but not included as regulatory profit / (loss) before tax, in nominal terms for that year. | L39: CPP applicant data.
A40: Input29 | B40: Deferred tax balance relating to assets acquired in disclosure year | D40: 0 | E40: 0 | F40: 0 | G40: 0 | H40: 0 | I40: 0 | J40: 0 | K40: A series of values ($000) for the next period where a single value for a disclosure year represents the sum of the adjustment required to the opening deferred tax balance to account for assets that have been acquired by an EDB from another regulated supplier, in nominal terms for that year. | L40: CPP applicant data.
A41: Input30 | B41: Cost allocation adjustment | D41: 0 | E41: 0 | F41: 0 | G41: 0 | H41: 0 | I41: 0 | J41: 0 | K41: A series of values ($000) for the next period where a single value for a disclosure year represents the tax effect of the change in the opening deferred tax balance to account for the effect of changes in cost allocation on tax asset values, in nominal terms for that year. | L41: CPP applicant data.
A42: Input31 | B42: Opening or closing RAB values for ID years | D42: 1528013.011 | K42: A series of values ($000) for the first year of the next period where a value for that disclosure year represents the opening regulatory asset value in nominal terms of all regulated assets held by a supplier for that disclosure year. Up to nine seperate classes of assets can be entered. | L42: CPP applicant data.
A43: Input32 | B43: Disposals | D43: 9381.32267 | E43: 9476.78618 | F43: 10962.83663 | G43: 12853.75014 | H43: 13805.94945 | I43: 14295.00399 | J43: 14566.07484 | K43: A series of values ($000) for the next period, where a single value represents the opening RAB value of the relevant asset category that are forecast to be disposed of in that year. | L43: CPP applicant data.
A44: Input33 | B44: Total value of commissioned assets | D44: =CHOOSE($D$2,D45,D46) -> 110925.6201 | E44: 116022.1495 | F44: 220283.9494 | G44: 166853.9848 | H44: 175576.6912 | I44: 211734.9783 | J44: 216264.7551 | K44: A series of values ($000) for the next period where a single value for a disclosure year represents the actual or forecast cost of all assets to be acquired for that year.
A45: Input33.1 | D45: 110925.6201 | E45: 116022.1495 | F45: 226538.0957 | G45: 179141.7544 | H45: 186939.065 | I45: 221145.3001 | J45: 226429.7234 | L45: CPP applicant data.
A46: Input33.2 | D46: 110925.6201 | E46: 116022.1495 | F46: 220283.9494 | G46: 166853.9848 | H46: 175576.6912 | I46: 211734.9783 | J46: 216264.7551 | L46: Commerce Commission analysis.
A47: Input34 | B47: PVVCA | D47: =CHOOSE($D$2,D48,D49) -> 107140.7618 | E47: 112063.394 | F47: 211165.7964 | G47: 160965.7186 | H47: 169413.4293 | I47: 204060.0854 | J47: 207465.9092 | K47: A series of values ($000) for the next period where a single value for a disclosure represents the sum of the present value of each item making up the Total Value of Commissioned Assets, where each present value is determined by discounting each closing RAB value by the cost of capital from its relevant commissioning date to the commencement of the disclosure year.
A48: Input34.1 | D48: 107140.7618 | E48: 112063.394 | F48: 217206.5469 | G48: 172834.2211 | H48: 180409.1606 | I48: 213166.7537 | J48: 217302.8729 | L48: CPP applicant data.
A49: Input34.2 | D49: 107140.7618 | E49: 112063.394 | F49: 211165.7964 | G49: 160965.7186 | H49: 169413.4293 | I49: 204060.0854 | J49: 207465.9092 | L49: Commerce Commission analysis.
A50: Input35 | B50: Revaluation rate | D50: 0.02113821138 | E50: 0.02166934189 | F50: 0.0211128946 | G50: 0.0205564473 | H50: 0.02045611244 | I50: 0.02022805622 | J50: 0.02 | K50: Defined in cl. 5.3.10(4) of the EDB input methodologies. Uses latest Statistics New Zealand data and RBNZ forecasts prior to the date for which the vanilla WACC was determined. | L50: For 2017– 2020: from : from DPP model http://www.comcom.govt.nz/dmsdocument/12739. For 2021–2023: CPP applicant proposal.
A51: Input36 | B51: Remaining asset lives | D51: =CHOOSE($D$2,D52,D53) -> 24.96925692 | E51: 25.72233515 | F51: 26.03168648 | G51: 27.01688148 | H51: 27.00220111 | I51: 27.00626233 | J51: 27.47202989 | K51: A series of values (2 d.p.) for the next period where a single value for a disclosure year represents the term remaining of an asset’s or group of asset’s physical asset life at the commencement of the disclosure year as specified by cl. 2.2.8 of the EDB input methodologies.
A52: Input36.1 | D52: 24.96925692 | E52: 25.72233515 | F52: 26.03168648 | G52: 27.01810433 | H52: 27.01633404 | I52: 27.0270416 | J52: 27.48457231 | L52: CPP applicant data.
A53: Input36.2 | D53: 24.96925692 | E53: 25.72233515 | F53: 26.03168648 | G53: 27.01688148 | H53: 27.00220111 | I53: 27.00626233 | J53: 27.47202989 | L53: Commerce Commission analysis.
A54: Input37 | B54: Opening or closing RAB values for ID years without revaluations | D54: 1429342.525 | K54: As for Opening or closing RAB values for ID years (Input31) but is a series of values ($000) for the next period where a single value for a disclosure year represents the total depreciation amount for all assets for that year as if no indexed revaluation had ever been applied in respect of any asset. | L54: CPP applicant data.
A55: Input38 | B55: RAB proportionate investment | D55: =CHOOSE($D$2,D56,D57) -> 50772.14873 | E55: 53272.68166 | F55: 80169.54279 | G55: 73974.38432 | H55: 72915.80794 | I55: 85043.62014 | J55: 71701.62489 | K55: A series of values ($000) for the next period where a single value for a disclosure year represents the proportion of the value of assets commissioned or disposed.
A56: Input38.1 | D56: 50772.14873 | E56: 53272.68166 | F56: 83296.61597 | G56: 80118.26915 | H56: 78596.99486 | I56: 89748.78104 | J56: 76784.10901 | L56: CPP applicant data.
A57: Input38.2 | D57: 50772.14873 | E57: 53272.68166 | F57: 80169.54279 | G57: 73974.38432 | H57: 72915.80794 | I57: 85043.62014 | J57: 71701.62489 | L57: Commerce Commission analysis.
A58: Input39 | B58: Disposals without revaluations | D58: 8796.563229 | E58: 8886.076278 | F58: 10279.49778 | G58: 12052.5463 | H58: 12945.39283 | I58: 13403.96348 | J58: 13658.13786 | K58: A series of values ($000) for the next period, where a single value for an asset or aggregated asset group for a disclosure year represents the opening RAB value of those assets that are disposed of in that year. The value is calculated such that it does not include any revaluation amount which has been added to the RAB since the initial RAB date (31 March 2009). | L58: CPP applicant data.
A59: Input40 | B59: Fully depreciated assets | D59: =CHOOSE($D$2,D60,D61) -> 6325.285358 | E59: 4946.599933 | F59: 7030.133773 | G59: 11626.83033 | H59: 14804.11475 | I59: 15103.62864 | J59: 19002.19975 | K59: A series of values ($000) for the next period where a single value for an asset or aggregated asset group for a disclosure year represents the opening RAB value of those assets that are fully depreciated in that year.
A60: Input40.1 | D60: 6325.285358 | E60: 4946.599933 | F60: 7030.133773 | G60: 11626.83033 | H60: 14804.11475 | I60: 15103.62864 | J60: 19002.19975 | L60: CPP applicant data.
A61: Input40.2 | D61: 6325.285358 | E61: 4946.599933 | F61: 7030.133773 | G61: 11626.83033 | H61: 14804.11475 | I61: 15103.62864 | J61: 19002.19975 | L61: Commerce Commission analysis.
A62: Input41 | B62: Weighted average remaining life of assets based on RAB excluding revaluations | D62: =CHOOSE($D$2,D63,D64) -> 25.03350002 | E62: 25.95395152 | F62: 26.3875887 | G62: 27.4917949 | H62: 27.56311212 | I62: 27.64800854 | J62: 28.23742353 | K62: A series of values (2 d.p.) for the next period where a single value for a disclosure year represents the term remaining of an asset’s or group of asset’s weighted average physical asset life at the commencement of the disclosure year with weightings based on opening RAB excluding revaluations.
A63: Input41 | D63: 25.03350002 | E63: 25.95395152 | F63: 26.3875887 | G63: 27.49140233 | H63: 27.57376464 | I63: 27.66251367 | J63: 28.23838485 | L63: CPP applicant data.
A64: Input41 | D64: 25.03350002 | E64: 25.95395152 | F64: 26.3875887 | G64: 27.4917949 | H64: 27.56311212 | I64: 27.64800854 | J64: 28.23742353 | L64: Commerce Commission analysis.
A65: Input42 | B65: Deferred tax balance relating to assets disposed of in disclosure year | D65: -699.3293061 | E65: -706.4456192 | F65: -817.2230296 | G65: -958.1808965 | H65: -1029.162453 | I65: -1065.618951 | J65: -1085.825887 | K65: A series of values ($000) for the next period where a single value for a disclosure year represents the sum of the adjustment required to the opening deferred tax balance to account for assets that have been disposed of by an EDB from another regulated supplier, in nominal terms for that year. (IM amendments determination [2016]NZCC24) | L65: CPP applicant data.

Sheet RABx
A1: Regulatory Asset Base (RAB) Module
D4: Assessment Period | F4: CPP Regulatory Period
D5: =Inputs!D5 -> 2017 | E5: =Inputs!E5 -> 2018 | F5: =Inputs!F5 -> 2019 | G5: =Inputs!G5 -> 2020 | H5: =Inputs!H5 -> 2021 | I5: =Inputs!I5 -> 2022 | J5: =Inputs!J5 -> 2023 | K5: Input reference
A7: Total Opening RAB value
A9: Opening RAB value | D9: =IF(D$5=Inputs!$D$5,Inputs!D$42,B14) -> 1528013.011 | E9: =IF(E$5=Inputs!$D$5,Inputs!#REF!,D14) -> 1600328.986 | F9: =IF(F$5=Inputs!$D$5,Inputs!#REF!,E14) -> 1679024.34 | G9: =IF(G$5=Inputs!$D$5,Inputs!#REF!,F14) -> 1858915.379 | H9: =IF(H$5=Inputs!$D$5,Inputs!#REF!,G14) -> 1981819.379 | I9: =IF(I$5=Inputs!$D$5,Inputs!#REF!,H14) -> 2110150.455 | J9: =IF(J$5=Inputs!$D$5,Inputs!#REF!,I14) -> 2271544.396 | K9: Σ(INPUT31) | CALC
A10: less Depreciation | D10: =D52 -> 61195.77429 | E10: 62215.54058 | F10: 64499.25329 | G10: 68805.69768 | H10: 73394.73439 | I10: 78135.59792 | J10: 82685.71364 | K10: Σ(RAB)
A11: less Disposals | D11: =Inputs!D$43 -> 9381.32267 | E11: =Inputs!E$43 -> 9476.78618 | F11: =Inputs!F$43 -> 10962.83663 | G11: =Inputs!G$43 -> 12853.75014 | H11: =Inputs!H$43 -> 13805.94945 | I11: =Inputs!I$43 -> 14295.00399 | J11: =Inputs!J$43 -> 14566.07484 | K11: Σ(INPUT32)
A12: add Revaluation | D12: =D46 -> 31967.45241 | E12: 34365.53066 | F12: 35069.18022 | G12: 37709.46226 | H12: 39955.06935 | I12: 42089.56484 | J12: 44759.52244 | K12: Σ(RAB)
A13: add Total value of commissioned assets | D13: =Inputs!D$44 -> 110925.6201 | E13: =Inputs!E$44 -> 116022.1495 | F13: =Inputs!F$44 -> 220283.9494 | G13: =Inputs!G$44 -> 166853.9848 | H13: =Inputs!H$44 -> 175576.6912 | I13: =Inputs!I$44 -> 211734.9783 | J13: =Inputs!J$44 -> 216264.7551 | K13: Σ(INPUT33)
A14: Closing RAB value | D14: =D9-D10-D11+D12+D13 -> 1600328.986 | E14: =E9-E10-E11+E12+E13 -> 1679024.34 | F14: 1858915.379 | G14: 1981819.379 | H14: 2110150.455 | I14: 2271544.396 | J14: 2435316.886 | K14: CALC
A17: RAB roll-forward without revaluations
A19: Opening RAB value without revaluations | D19: =D56 -> 1429342.525 | E19: 1474374.391 | F19: 1524703.146 | G19: 1676926.526 | H19: 1770730.618 | I19: 1869119.149 | J19: 1999846.048 | K19: Σ(INPUT37) | CALC
A20: less Adjusted depreciation | D20: =D66 -> 57097.1907 | E20: 56807.31853 | F20: 57781.07137 | G20: 60997.34601 | H20: 64242.76803 | I20: 67604.11498 | J20: 70822.53967 | K20: Σ(INPUT36) | CALC
A21: less Disposals without revaluations | D21: =D58 -> 8796.563229 | E21: 8886.076278 | F21: 10279.49778 | G21: 12052.5463 | H21: 12945.39283 | I21: 13403.96348 | J21: 13658.13786 | K21: Σ(INPUT32)
A22: add Total value of commissioned assets | D22: 110925.6201 | E22: 116022.1495 | F22: 220283.9494 | G22: 166853.9848 | H22: 175576.6912 | I22: 211734.9783 | J22: 216264.7551 | K22: Σ(RAB)
A23: Closing RAB value without revaluations | D23: =D19-D20-D21+D22 -> 1474374.391 | E23: =E19-E20-E21+E22 -> 1524703.146 | F23: 1676926.526 | G23: 1770730.618 | H23: 1869119.149 | I23: 1999846.048 | J23: 2131630.126 | K23: CALC
D24: =D60-D23 -> 0 | E24: =E60+0-E23 -> 0 | F24: 0 | G24: 0 | H24: 0 | I24: 0 | J24: 0
A26: TFVCA
A28: PVVCA | D28: =Inputs!D47 -> 107140.7618 | E28: =Inputs!E47 -> 112063.394 | F28: =Inputs!F47 -> 211165.7964 | G28: =Inputs!G47 -> 160965.7186 | H28: =Inputs!H47 -> 169413.4293 | I28: =Inputs!I47 -> 204060.0854 | J28: =Inputs!J47 -> 207465.9092 | K28: INPUT34
A29: multiply by (1 + Cost of capital) | D29: =1+Inputs!D11 -> 1.0719 | E29: =1+Inputs!E11 -> 1.0719 | F29: =1+Inputs!F11 -> 1.0719 | G29: =1+Inputs!G11 -> 1.0719 | H29: =1+Inputs!H11 -> 1.0678 | I29: =1+Inputs!I11 -> 1.0678 | J29: =1+Inputs!J11 -> 1.0678 | K29: INPUT6 | CALC
A30: divide by Total value of commissioned assets | D30: =D13 -> 110925.6201 | E30: =E13 -> 116022.1495 | F30: 220283.9494 | G30: 166853.9848 | H30: 175576.6912 | I30: 211734.9783 | J30: 216264.7551 | K30: Σ(INPUT33)
A31: TFVCA | D31: =D28*D29/D30 -> 1.035326036 | E31: =E28*E29/E30 -> 1.035326036 | F31: 1.027531138 | G31: 1.034072719 | H31: 1.030317058 | I31: 1.029094772 | J31: 1.024355992 | K31: CALC
A34: RAB proportionate investment
A36: RAB proportionate investment | D36: =Inputs!D55 -> 50772.14873 | E36: =Inputs!E55 -> 53272.68166 | F36: =Inputs!F55 -> 80169.54279 | G36: =Inputs!G55 -> 73974.38432 | H36: =Inputs!H55 -> 72915.80794 | I36: =Inputs!I55 -> 85043.62014 | J36: =Inputs!J55 -> 71701.62489 | K36: INPUT38
A39: Total revaluation
A41: Opening RAB value | D41: =D9 -> 1528013.011 | E41: 1600328.986 | F41: 1679024.34 | G41: 1858915.379 | H41: 1981819.379 | I41: 2110150.455 | J41: =J9 -> 2271544.396 | K41: RAB
A42: less Fully depreciated assets | D42: =Inputs!D$59 -> 6325.285358 | E42: =Inputs!E$59 -> 4946.599933 | F42: =Inputs!F$59 -> 7030.133773 | G42: =Inputs!G$59 -> 11626.83033 | H42: =Inputs!H$59 -> 14804.11475 | I42: =Inputs!I$59 -> 15103.62864 | J42: =Inputs!J$59 -> 19002.19975 | K42: INPUT40
A43: less Disposals | D43: =Inputs!D$43 -> 9381.32267 | E43: =Inputs!E$43 -> 9476.78618 | F43: =Inputs!F$43 -> 10962.83663 | G43: =Inputs!G$43 -> 12853.75014 | H43: =Inputs!H$43 -> 13805.94945 | I43: =Inputs!I$43 -> 14295.00399 | J43: =Inputs!J$43 -> 14566.07484 | K43: INPUT32
A44: Adjusted RAB value | D44: =D41-D42-D43 -> 1512306.403 | E44: 1585905.6 | F44: 1661031.369 | G44: 1834434.799 | H44: 1953209.314 | I44: 2080751.823 | J44: 2237976.122 | K44: CALC
A45: multiply by Revaluation rate | D45: =Inputs!D$50 -> 0.02113821138 | E45: =Inputs!E$50 -> 0.02166934189 | F45: =Inputs!F$50 -> 0.0211128946 | G45: =Inputs!G$50 -> 0.0205564473 | H45: =Inputs!H$50 -> 0.02045611244 | I45: =Inputs!I$50 -> 0.02022805622 | J45: =Inputs!J$50 -> 0.02 | K45: INPUT35
A46: Total Revaluation | D46: =D44*D45 -> 31967.45241 | E46: =E44*E45 -> 34365.53066 | F46: 35069.18022 | G46: 37709.46226 | H46: 39955.06935 | I46: 42089.56484 | J46: 44759.52244 | K46: CALC | RAB
A48: Total depreciation
A50: Opening RAB value | D50: =D9 -> 1528013.011 | E50: =E9 -> 1600328.986 | F50: 1679024.34 | G50: 1858915.379 | H50: 1981819.379 | I50: 2110150.455 | J50: 2271544.396 | K50: RAB
A51: multiply by (1 / Remaining asset life) | D51: =IFERROR(1/Inputs!D$51,0) -> 0.04004924949 | E51: =IFERROR(1/Inputs!E$51,0) -> 0.03887671917 | F51: =IFERROR(1/Inputs!F$51,0) -> 0.03841472203 | G51: =IFERROR(1/Inputs!G$51,0) -> 0.03701389447 | H51: =IFERROR(1/Inputs!H$51,0) -> 0.03703401792 | I51: =IFERROR(1/Inputs!I$51,0) -> 0.03702844872 | J51: =IFERROR(1/Inputs!J$51,0) -> 0.03640065929 | K51: INPUT36 | CALC
A52: Total depreciation | D52: =IFERROR(D50*D51,0) -> 61195.77429 | E52: =IFERROR(E50*E51,0) -> 62215.54058 | F52: 64499.25329 | G52: 68805.69768 | H52: 73394.73439 | I52: 78135.59792 | J52: 82685.71364
A54: Total opening RAB value without revaluations
A56: Opening RAB value without revaluations | D56: =IF(D$5=Inputs!$D$5,Inputs!$D$54,B60) -> 1429342.525 | E56: =IF(E$5=Inputs!$D$5,Inputs!$D$54,D60) -> 1474374.391 | F56: =IF(F$5=Inputs!$D$5,Inputs!$D$54,E60) -> 1524703.146 | G56: =IF(G$5=Inputs!$D$5,Inputs!$D$54,F60) -> 1676926.526 | H56: =IF(H$5=Inputs!$D$5,Inputs!$D$54,G60) -> 1770730.618 | I56: =IF(I$5=Inputs!$D$5,Inputs!$D$54,H60) -> 1869119.149 | J56: =IF(J$5=Inputs!$D$5,Inputs!$D$54,I60) -> 1999846.048 | K56: INPUT37 | CALC
A57: less Adjusted depreciation | D57: =D66 -> 57097.1907 | E57: =E66 -> 56807.31853 | F57: 57781.07137 | G57: 60997.34601 | H57: 64242.76803 | I57: 67604.11498 | J57: 70822.53967 | K57: RAB6
A58: less Disposals without revaluations | D58: =Inputs!D$58 -> 8796.563229 | E58: =Inputs!E$58 -> 8886.076278 | F58: =Inputs!F$58 -> 10279.49778 | G58: =Inputs!G$58 -> 12052.5463 | H58: =Inputs!H$58 -> 12945.39283 | I58: =Inputs!I$58 -> 13403.96348 | J58: =Inputs!J$58 -> 13658.13786 | K58: INPUT39
A59: add Total value of commissioned assets | D59: =D13 -> 110925.6201 | E59: =E13 -> 116022.1495 | F59: 220283.9494 | G59: 166853.9848 | H59: 175576.6912 | I59: 211734.9783 | J59: 216264.7551 | K59: INPUT33
A60: Closing RAB value without revaluations | D60: =D56-D57-D58+D59 -> 1474374.391 | E60: =E56-E57-E58+E59 -> 1524703.146 | F60: 1676926.526 | G60: 1770730.618 | H60: 1869119.149 | I60: 1999846.048 | J60: 2131630.126 | K60: CALC
A62: Total adjusted depreciation
A64: Opening RAB value | D64: =D56 -> 1429342.525 | E64: =E56 -> 1474374.391 | F64: 1524703.146 | G64: 1676926.526 | H64: 1770730.618 | I64: 1869119.149 | J64: 1999846.048 | K64: INPUT37 | CALC
A65: multiply by (1 / Remaining asset life) | D65: =1/Inputs!D62 -> 0.03994647169 | E65: =1/Inputs!E62 -> 0.03852977838 | F65: =1/Inputs!F62 -> 0.03789660403 | G65: =1/Inputs!G62 -> 0.03637448932 | H65: =1/Inputs!H62 -> 0.03628037341 | I65: =1/Inputs!I62 -> 0.0361689703 | J65: =1/Inputs!J62 -> 0.03541399586 | K65: INPUT41
A66: Total depreciation | D66: =IFERROR(D64*D65,0) -> 57097.1907 | E66: =IFERROR(E64*E65,0) -> 56807.31853 | F66: 57781.07137 | G66: 60997.34601 | H66: 64242.76803 | I66: 67604.11498 | J66: 70822.53967

Sheet TAXx
A1: Regulatory Tax Module
D4: Assessment Period | F4: CPP Regulatory Period
D5: =Inputs!D5 -> 2017 | E5: =Inputs!E5 -> 2018 | F5: =Inputs!F5 -> 2019 | G5: =Inputs!G5 -> 2020 | H5: =Inputs!H5 -> 2021 | I5: =Inputs!I5 -> 2022 | J5: =Inputs!J5 -> 2023 | K5: Input reference
A7: Forecast regulatory tax allowance
A9: Regulatory taxable income | D9: =D20 -> 71457.38921 | E9: =E20 -> 74268.44018 | F9: 81351.12472 | G9: 89452.08766 | H9: 88497.80972 | I9: 94661.93025 | J9: 100314.0469 | K9: TAX
A10: less Utilised tax losses | D10: =D33 -> 0 | E10: =E33 -> 0 | F10: 0 | G10: 0 | H10: 0 | I10: 0 | J10: 0 | K10: TAX
A11: Adjusted regulatory taxable income (nil if <0) | D11: =MAX(D9-D10,0) -> 71457.38921 | E11: =MAX(E9-E10,0) -> 74268.44018 | F11: 81351.12472 | G11: 89452.08766 | H11: 88497.80972 | I11: 94661.93025 | J11: 100314.0469 | K11: CALC
A12: multiply by Corporate tax rate | D12: =D74 -> 0.28 | E12: =E74 -> 0.28 | F12: 0.28 | G12: 0.28 | H12: 0.28 | I12: 0.28 | J12: 0.28 | K12: TAX
A13: Forecast regulatory tax allowance | D13: =D11*D12 -> 20008.06898 | E13: =E11*E12 -> 20795.16325 | F13: 22778.31492 | G13: 25046.58454 | H13: 24779.38672 | I13: 26505.34047 | J13: 28087.93314 | K13: CALC
A15: Regulatory taxable income
A17: Regulatory profit/(loss) before tax | D17: =D27 -> 96565.44269 | E17: =E27 -> 99833.06359 | F17: 108340.4411 | G17: 119743.4831 | H17: 117362.3028 | I17: 125334.3853 | J17: 132960.0266 | K17: TAX
A18: add permanent differences | D18: =D41 -> 133.389519 | E18: =E41 -> 135.3163176 | F18: 137.5183732 | G18: 140.3259941 | H18: 143.2204668 | I18: 146.1419821 | J18: 149.0897654 | K18: TAX
A19: add regulatory tax adjustments | D19: =D63 -> -25241.443 | E19: =E63 -> -25699.93973 | F19: -27126.83475 | G19: -30431.72146 | H19: -29007.71359 | I19: -30818.59703 | J19: -32795.06941 | K19: TAX
A20: Regulatory taxable income | D20: =SUM(D17:D19) -> 71457.38921 | E20: =SUM(E17:E19) -> 74268.44018 | F20: 81351.12472 | G20: 89452.08766 | H20: 88497.80972 | I20: 94661.93025 | J20: 100314.0469 | K20: CALC
A22: Regulatory profit / (loss) before tax
A24: Building blocks allowable revenue before tax | D24: =BBARx!D33 -> 235275.13 | E24: =BBARx!E33 -> 242827.4119 | F24: =BBARx!F33 -> 264912.3536 | G24: =BBARx!G33 -> 285860.6522 | H24: =BBARx!H33 -> 290090.981 | I24: =BBARx!I33 -> 301582.7807 | J24: =BBARx!J33 -> 313438.7632 | K24: BBAR
A25: less Forecast operating expenditure | D25: =Inputs!D20 -> 77513.91298 | E25: =Inputs!E20 -> 80778.80771 | F25: =Inputs!F20 -> 92072.65918 | G25: =Inputs!G20 -> 97311.47141 | H25: =Inputs!H20 -> 99333.94379 | I25: =Inputs!I20 -> 98112.79748 | J25: =Inputs!J20 -> 97793.02301 | K25: INPUT13
A26: less Total depreciation | D26: =RABx!D10 -> 61195.77429 | E26: =RABx!E10 -> 62215.54058 | F26: =RABx!F10 -> 64499.25329 | G26: =RABx!G10 -> 68805.69768 | H26: =RABx!H10 -> 73394.73439 | I26: =RABx!I10 -> 78135.59792 | J26: =RABx!J10 -> 82685.71364 | K26: RAB
A27: Regulatory profit/(loss) before tax | D27: =D24-D25-D26 -> 96565.44269 | E27: =E24-E25-E26 -> 99833.06359 | F27: 108340.4411 | G27: 119743.4831 | H27: 117362.3028 | I27: 125334.3853 | J27: 132960.0266 | K27: CALC
A29: Utilised tax losses
A31: Opening tax losses | D31: =IF(D5=Inputs!$D$5,Inputs!$D$25,B34) -> 0 | E31: =IF(E5=Inputs!$D$5,Inputs!$D$25,D34) -> 0 | F31: =IF(F5=Inputs!$D$5,Inputs!$D$25,E34) -> 0 | G31: =IF(G5=Inputs!$D$5,Inputs!$D$25,F34) -> 0 | H31: =IF(H5=Inputs!$D$5,Inputs!$D$25,G34) -> 0 | I31: =IF(I5=Inputs!$D$5,Inputs!$D$25,H34) -> 0 | J31: =IF(J5=Inputs!$D$5,Inputs!$D$25,I34) -> 0 | K31: INPUT16 | CALC
A32: add Regulatory taxable income losses | D32: =-MIN(D27,0) -> 0 | E32: 0 | F32: 0 | G32: 0 | H32: 0 | I32: 0 | J32: 0 | K32: TAX
A33: less Utilised tax losses | D33: =MIN(D31,MAX(D27,0)) -> 0 | E33: =MIN(E31,MAX(E27,0)) -> 0 | F33: 0 | G33: 0 | H33: 0 | I33: 0 | J33: 0 | K33: TAX
A34: Closing tax losses | D34: =D31+D32-D33 -> 0 | E34: =E31+E32-E33 -> 0 | F34: 0 | G34: 0 | H34: 0 | I34: 0 | J34: 0 | K34: CALC
A36: Permanent differences
A38: Positive permanent differences | D38: =Inputs!D26 -> 133.389519 | E38: =Inputs!E26 -> 135.3163176 | F38: =Inputs!F26 -> 137.5183732 | G38: =Inputs!G26 -> 140.3259941 | H38: =Inputs!H26 -> 143.2204668 | I38: =Inputs!I26 -> 146.1419821 | J38: =Inputs!J26 -> 149.0897654 | K38: INPUT17
A39: less Discretionary discounts and customer rebates | D39: =Inputs!D27 -> 0 | E39: =Inputs!E27 -> 0 | F39: =Inputs!F27 -> 0 | G39: =Inputs!G27 -> 0 | H39: =Inputs!H27 -> 0 | I39: =Inputs!I27 -> 0 | J39: =Inputs!J27 -> 0 | K39: INPUT18
A40: less Negative permanent differences | D40: =Inputs!D28 -> 0 | E40: =Inputs!E28 -> 0 | F40: =Inputs!F28 -> 0 | G40: =Inputs!G28 -> 0 | H40: =Inputs!H28 -> 0 | I40: =Inputs!I28 -> 0 | J40: =Inputs!J28 -> 0 | K40: INPUT19
A41: Permanent Differences | D41: =D38-D39-D40 -> 133.389519 | E41: =E38-E39-E40 -> 135.3163176 | F41: 137.5183732 | G41: 140.3259941 | H41: 143.2204668 | I41: 146.1419821 | J41: 149.0897654 | K41: CALC
A43: Regulatory tax adjustments
A45: Amortisation of initial differences in asset values | D45: =D68 -> 10446.71319 | E45: =E68 -> 10373.76172 | F45: 10301.20358 | G45: 10229.02764 | H45: 10157.22167 | I45: 10085.77214 | J45: 10014.66397 | K45: TAX
A46: add:
A47: Amortisation of revaluations
A48: Total depreciation | D48: =RABx!D10 -> 61195.77429 | E48: =RABx!E10 -> 62215.54058 | F48: =RABx!F10 -> 64499.25329 | G48: =RABx!G10 -> 68805.69768 | H48: =RABx!H10 -> 73394.73439 | I48: =RABx!I10 -> 78135.59792 | J48: =RABx!J10 -> 82685.71364 | K48: RAB
A49: less Adjusted Depreciation | D49: =RABx!D20 -> 57097.1907 | E49: =RABx!E20 -> 56807.31853 | F49: =RABx!F20 -> 57781.07137 | G49: =RABx!G20 -> 60997.34601 | H49: =RABx!H20 -> 64242.76803 | I49: =RABx!I20 -> 67604.11498 | J49: =RABx!J20 -> 70822.53967 | K49: RAB
A50: Amortisation of revaluations | D50: =D48-D49 -> 4098.583587 | E50: =E48-E49 -> 5408.222049 | F50: 6718.181928 | G50: 7808.351676 | H50: 9151.966352 | I50: 10531.48295 | J50: 11863.17397 | K50: CALC
A51: less:
A52: Notional deductible interest
A53: regulatory investment value | D53: =BBARx!D45 -> 1478693.583 | E53: =BBARx!E45 -> 1540946.72 | F53: =BBARx!F45 -> 1615328.573 | G53: =BBARx!G45 -> 1788564.472 | H53: =BBARx!H45 -> 1900448.732 | I53: =BBARx!I45 -> 2015070.271 | J53: =BBARx!J45 -> 2159353.582 | K53: BBAR
A54: add RAB proportionate investment | D54: =RABx!D36 -> 50772.14873 | E54: =RABx!E36 -> 53272.68166 | F54: =RABx!F36 -> 80169.54279 | G54: =RABx!G36 -> 73974.38432 | H54: =RABx!H36 -> 72915.80794 | I54: =RABx!I36 -> 85043.62014 | J54: =RABx!J36 -> 71701.62489 | K54: RAB
A55: Asset Base | D55: =D53+D54 -> 1529465.732 | E55: =E53+E54 -> 1594219.402 | F55: 1695498.116 | G55: 1862538.856 | H55: 1973364.54 | I55: 2100113.891 | J55: 2231055.207 | K55: CALC
A56: multiply by Company Debt leverage | D56: =Inputs!$C$29 -> 0.42 | E56: =Inputs!$C$29 -> 0.42 | F56: =Inputs!$C$29 -> 0.42 | G56: =Inputs!$C$29 -> 0.42 | H56: =Inputs!$C$29 -> 0.42 | I56: =Inputs!$C$29 -> 0.42 | J56: =Inputs!$C$29 -> 0.42 | K56: INPUT20
A57: Proportion of Asset base funded by Debt | D57: =D55*D56 -> 642375.6075 | E57: =E55*E56 -> 669572.1488 | F57: 712109.2087 | G57: 782266.3195 | H57: 828813.1068 | I57: 882047.8341 | J57: 937043.1868 | K57: CALC
A58: multiply by cost of debt | D58: =Inputs!D30 -> 0.0609 | E58: =Inputs!E30 -> 0.0609 | F58: =Inputs!F30 -> 0.0609 | G58: =Inputs!G30 -> 0.0609 | H58: =Inputs!H30 -> 0.057 | I58: =Inputs!I30 -> 0.057 | J58: =Inputs!J30 -> 0.057 | K58: INPUT21
A59: Notional interest | D59: =D57*D58 -> 39120.6745 | E59: =E57*E58 -> 40776.94386 | F59: 43367.45081 | G59: 47640.01885 | H59: 47242.34709 | I59: 50276.72655 | J59: 53411.46165 | K59: CALC
A60: add term credit spread differential | D60: =Inputs!D15 -> 1859.667473 | E60: =Inputs!E15 -> 1949.437343 | F60: =Inputs!F15 -> 2103.156056 | G60: =Inputs!G15 -> 2283.154945 | H60: =Inputs!H15 -> 2432.503609 | I60: =Inputs!I15 -> 2604.732922 | J60: =Inputs!J15 -> 2798.030661 | K60: INPUT10
A61: Notional deductible interest | D61: =(D59+D60)/(SQRT(1+Inputs!D30)) -> 39786.73978 | E61: =(E59+E60)/(SQRT(1+Inputs!E30)) -> 41481.9235 | F61: =(F59+F60)/(SQRT(1+Inputs!F30)) -> 44146.22026 | G61: =(G59+G60)/(SQRT(1+Inputs!G30)) -> 48469.10078 | H61: =(H59+H60)/(SQRT(1+Inputs!H30)) -> 48316.90161 | I61: =(I59+I60)/(SQRT(1+Inputs!I30)) -> 51435.85212 | J61: =(J59+J60)/(SQRT(1+Inputs!J30)) -> 54672.90735 | K61: CALC ¹
A63: Regulatory tax adjustments | D63: =D45+D50-D61 -> -25241.443 | E63: =E45+E50-E61 -> -25699.93973 | F63: -27126.83475 | G63: -30431.72146 | H63: -29007.71359 | I63: -30818.59703 | J63: -32795.06941
A65: Amortisation of initial differences in asset values
A67: Opening unamortised initial difference in asset values | D67: =IF(D5=Inputs!$D$5,Inputs!$D$31,B70) -> 271614.543 | E67: =IF(E5=Inputs!$D$5,Inputs!$D$31,D70) -> 259344.0429 | F67: =IF(F5=Inputs!$D$5,Inputs!$D$31,E70) -> 247228.886 | G67: =IF(G5=Inputs!$D$5,Inputs!$D$31,F70) -> 235267.6358 | H67: =IF(H5=Inputs!$D$5,Inputs!$D$31,G70) -> 223458.8768 | I67: =IF(I5=Inputs!$D$5,Inputs!$D$31,H70) -> 211801.2149 | J67: =IF(J5=Inputs!$D$5,Inputs!$D$31,I70) -> 200293.2793 | K67: INPUT22 | CALC
A68: less Amortisation based on weighted average remaining useful life of relevant assets | D68: =D67/Inputs!D33 -> 10446.71319 | E68: =E67/Inputs!E33 -> 10373.76172 | F68: =F67/Inputs!F33 -> 10301.20358 | G68: =G67/Inputs!G33 -> 10229.02764 | H68: =H67/Inputs!H33 -> 10157.22167 | I68: =I67/Inputs!I33 -> 10085.77214 | J68: =J67/Inputs!J33 -> 10014.66397 | K68: INPUT24 | CALC
A69: add Adjustment to opening unamortised initial differences in asset values for sold or acquired assets | D69: =Inputs!D32 -> -1823.786883 | E69: =Inputs!E32 -> -1741.395208 | F69: =Inputs!F32 -> -1660.046602 | G69: =Inputs!G32 -> -1579.731421 | H69: =Inputs!H32 -> -1500.440159 | I69: =Inputs!I32 -> -1422.163457 | J69: =Inputs!J32 -> -1344.892109 | K69: INPUT23
A70: Closing unamortised initial difference in asset values | D70: =D67-D68+D69 -> 259344.0429 | E70: =E67-E68+E69 -> 247228.886 | F70: 235267.6358 | G70: 223458.8768 | H70: 211801.2149 | I70: 200293.2793 | J70: 188933.7233 | K70: CALC
A72: Corporate tax rate
A74: Corporate Tax Rate | D74: =Inputs!D24 -> 0.28 | E74: =Inputs!E24 -> 0.28 | F74: =Inputs!F24 -> 0.28 | G74: =Inputs!G24 -> 0.28 | H74: =Inputs!H24 -> 0.28 | I74: =Inputs!I24 -> 0.28 | J74: =Inputs!J24 -> 0.28 | K74: INPUT15
A76: Notes:
A77: ¹ Incorporates IM amendment [2014] NZCC 31 IM clause 5.3.16(2) definition of 'Notional deductible interest'.

Sheet DTAXx
A1: Deferred Tax Module
D4: Assessment Period | F4: CPP Regulatory Period
D5: =Inputs!D5 -> 2017 | E5: =Inputs!E5 -> 2018 | F5: =Inputs!F5 -> 2019 | G5: =Inputs!G5 -> 2020 | H5: =Inputs!H5 -> 2021 | I5: =Inputs!I5 -> 2022 | J5: =Inputs!J5 -> 2023 | K5: Input reference
A7: Opening Deferred Tax | D7: =IF(D5=Inputs!$D$5,Inputs!$D$34,B23) -> -49319.42728 | E7: =IF(E5=Inputs!$D$5,Inputs!$D$34,D23) -> -59382.26608 | F7: =IF(F5=Inputs!$D$5,Inputs!$D$34,E23) -> -63695.76645 | G7: =IF(G5=Inputs!$D$5,Inputs!$D$34,F23) -> -70350.90781 | H7: =IF(H5=Inputs!$D$5,Inputs!$D$34,G23) -> -81370.64652 | I7: =IF(I5=Inputs!$D$5,Inputs!$D$34,H23) -> -95080.1845 | J7: =IF(J5=Inputs!$D$5,Inputs!$D$34,I23) -> -112190.8147 | K7: INPUT25 | CALC
A9: Less:
A10: tax effect of amortisation of initial difference in asset values | D10: =TAXx!D68*TAXx!D74 -> 2925.079694 | E10: =TAXx!E68*TAXx!E74 -> 2904.653281 | F10: =TAXx!F68*TAXx!F74 -> 2884.337003 | G10: =TAXx!G68*TAXx!G74 -> 2864.12774 | H10: =TAXx!H68*TAXx!H74 -> 2844.022068 | I10: =TAXx!I68*TAXx!I74 -> 2824.016199 | J10: =TAXx!J68*TAXx!J74 -> 2804.105911 | K10: TAX | CALC
A11: Deferred tax balance relating to assets disposed of in the disclosure year in question | D11: =Inputs!D65 -> -699.3293061 | E11: =Inputs!E65 -> -706.4456192 | F11: =Inputs!F65 -> -817.2230296 | G11: =Inputs!G65 -> -958.1808965 | H11: =Inputs!H65 -> -1029.162453 | I11: =Inputs!I65 -> -1065.618951 | J11: =Inputs!J65 -> -1085.825887 | K11: INPUT42 ¹
A12: Add:
A13: Tax Effect of Temporary Differences
A14: Adjusted Depreciation | D14: =RABx!D20*TAXx!D74 -> 15987.2134 | E14: =RABx!E20*TAXx!E74 -> 15906.04919 | F14: =RABx!F20*TAXx!F74 -> 16178.69998 | G14: =RABx!G20*TAXx!G74 -> 17079.25688 | H14: =RABx!H20*TAXx!H74 -> 17987.97505 | I14: =RABx!I20*TAXx!I74 -> 18929.15219 | J14: =RABx!J20*TAXx!J74 -> 19830.31111 | K14: RAB, TAX | CALC
A15: less Tax depreciation | D15: =Inputs!D35*TAXx!D74 -> 24112.506 | E15: =Inputs!E35*TAXx!E74 -> 18312.72265 | F15: =Inputs!F35*TAXx!F74 -> 21091.48948 | G15: =Inputs!G35*TAXx!G74 -> 26560.96719 | H15: =Inputs!H35*TAXx!H74 -> 30272.95941 | I15: =Inputs!I35*TAXx!I74 -> 34683.98345 | J15: =Inputs!J35*TAXx!J74 -> 38594.65326 | K15: INPUT26, TAX | CALC
A16: Tax effect of Depreciation temporary differences | D16: =D14-D15 -> -8125.292598 | E16: =E14-E15 -> -2406.673459 | F16: -4912.789497 | G16: -9481.710311 | H16: -12284.98436 | I16: -15754.83126 | J16: -18764.34215 | K16: CALC
A17: Tax effect of positive temporary differences | D17: =Inputs!D38*TAXx!D74 -> 288.2041885 | E17: =Inputs!E38*TAXx!E74 -> 291.3807517 | F17: =Inputs!F38*TAXx!F74 -> 324.7621152 | G17: =Inputs!G38*TAXx!G74 -> 367.9184458 | H17: =Inputs!H38*TAXx!H74 -> 390.3059848 | I17: =Inputs!I38*TAXx!I74 -> 402.5983438 | J17: =Inputs!J38*TAXx!J74 -> 410.2091518 | K17: INPUT27, TAX | CALC
A18: less Tax effect of negative temporary differences | D18: =-Inputs!D39*TAXx!D74 -> 0 | E18: =-Inputs!E39*TAXx!E74 -> 0 | F18: =-Inputs!F39*TAXx!F74 -> 0 | G18: =-Inputs!G39*TAXx!G74 -> 0 | H18: =-Inputs!H39*TAXx!H74 -> 0 | I18: =-Inputs!I39*TAXx!I74 -> 0 | J18: =-Inputs!J39*TAXx!J74 -> 0 | K18: INPUT28, TAX | CALC
A19: tax effect of temporary differences | D19: =SUM(D16:D18) -> -7837.08841 | E19: =SUM(E16:E18) -> -2115.292707 | F19: -4588.027381 | G19: -9113.791865 | H19: -11894.67837 | I19: -15352.23292 | J19: -18354.133 | K19: CALC
A20: deferred tax balance relating to assets acquired in the disclosure year in question | D20: =Inputs!D40 -> 0 | E20: =Inputs!E40 -> 0 | F20: =Inputs!F40 -> 0 | G20: =Inputs!G40 -> 0 | H20: =Inputs!H40 -> 0 | I20: =Inputs!I40 -> 0 | J20: =Inputs!J40 -> 0 | K20: INPUT29
A21: cost allocation adjustment | D21: =Inputs!D41 -> 0 | E21: =Inputs!E41 -> 0 | F21: =Inputs!F41 -> 0 | G21: =Inputs!G41 -> 0 | H21: =Inputs!H41 -> 0 | I21: =Inputs!I41 -> 0 | J21: =Inputs!J41 -> 0 | K21: INPUT30
A23: Closing Deferred Tax | D23: =D7-D10-D11+SUM(D19:D22) -> -59382.26608 | E23: -63695.76645 | F23: -70350.90781 | G23: -81370.64652 | H23: -95080.1845 | I23: -112190.8147 | J23: =J7-J10-J11+SUM(J19:J22) -> -132263.2277 | K23: CALC
A25: Notes:
A26: ¹ Incorporates IM amendment [2016] NZCC 24 IM clause 5.3.19(2) definition of 'Closing Deferred Tax'.

Sheet BBARx
A1: Building Blocks Allowable Revenue (BBAR) Module
D4: Assessment Period | F4: CPP Regulatory Period
D5: =Inputs!D5 -> 2017 | E5: =Inputs!E5 -> 2018 | F5: =Inputs!F5 -> 2019 | G5: =Inputs!G5 -> 2020 | H5: =Inputs!H5 -> 2021 | I5: =Inputs!I5 -> 2022 | J5: =Inputs!J5 -> 2023 | K5: Input reference
A7: Building Blocks Allowable Revenue Before Tax (BBAR Before Tax)
A9: Calculation A
A10: Regulatory investment value x Cost of capital | D10: =D45*Inputs!D11 -> 106318.0686 | E10: =E45*Inputs!E11 -> 110794.0692 | F10: =F45*Inputs!F11 -> 116142.1244 | G10: =G45*Inputs!G11 -> 128597.7855 | H10: =H45*Inputs!H11 -> 128850.424 | I10: =I45*Inputs!I11 -> 136621.7644 | J10: =J45*Inputs!J11 -> 146404.1728 | K10: BBAR, INPUT6 | CALC
A11: add (Total value of commissioned assets x (TFVCA - 1)) | D11: =RABx!D13*(RABx!D31-1) -> 3918.562406 | E11: =RABx!E13*(RABx!E31-1) -> 4098.602584 | F11: =RABx!F13*(RABx!F31-1) -> 6064.667734 | G11: =RABx!G13*(RABx!G31-1) -> 5685.168967 | H11: =RABx!H13*(RABx!H31-1) -> 5322.968701 | I11: =RABx!I13*(RABx!I31-1) -> 6160.380909 | J11: =RABx!J13*(RABx!J31-1) -> 5267.34274 | K11: RAB | CALC
A12: add (Term credit spread differential allowance x TF) | D12: =Inputs!D15*Inputs!D18 -> 1925.179033 | E12: =Inputs!E15*Inputs!E18 -> 2018.111278 | F12: =Inputs!F15*Inputs!F18 -> 2177.245127 | G12: =Inputs!G15*Inputs!G18 -> 2363.584939 | H12: =Inputs!H15*Inputs!H18 -> 2513.387347 | I12: =Inputs!I15*Inputs!I18 -> 2691.343496 | J12: =Inputs!J15*Inputs!J18 -> 2891.068622 | K12: INPUT10, INPUT11 | CALC
A13: less Total revaluation | D13: =RABx!D12 -> 31967.45241 | E13: =RABx!E12 -> 34365.53066 | F13: =RABx!F12 -> 35069.18022 | G13: =RABx!G12 -> 37709.46226 | H13: =RABx!H12 -> 39955.06935 | I13: =RABx!I12 -> 42089.56484 | J13: =RABx!J12 -> 44759.52244 | K13: RAB
D14: =D10+D11+D12-D13 -> 80194.35767 | E14: =E10+E11+E12-E13 -> 82545.25238 | F14: 89314.85705 | G14: 98937.07714 | H14: 96731.71073 | I14: 103383.9239 | J14: 109803.0618 | K14: CALC
A15: divide by TFrev - Corporate tax rate x TF | D15: =Inputs!D19-TAXx!D74*Inputs!D18 -> 0.7386899018 | E15: =Inputs!E19-TAXx!E74*Inputs!E18 -> 0.7386899018 | F15: =Inputs!F19-TAXx!F74*Inputs!F18 -> 0.7386899018 | G15: =Inputs!G19-TAXx!G74*Inputs!G18 -> 0.7386899018 | H15: =Inputs!H19-TAXx!H74*Inputs!H18 -> 0.737646221 | I15: =Inputs!I19-TAXx!I74*Inputs!I18 -> 0.737646221 | J15: =Inputs!J19-TAXx!J74*Inputs!J18 -> 0.737646221 | K15: INPUT12, TAX, INPUT11 | CALC
A16: Subtotal A | D16: =D14/D15 -> 108562.9538 | E16: 111745.4729 | F16: 120909.8119 | G16: 133935.8734 | H16: 131135.642 | I16: 140153.804 | J16: 148855.9944 | K16: CALC
A18: Calculation B
A19: add Total depreciation x (1 - Corporate tax rate x TF) | D19: =RABx!D10*(1-TAXx!D74*Inputs!D18) -> 43457.33958 | E19: =RABx!E10*(1-TAXx!E74*Inputs!E18) -> 44181.51262 | F19: =RABx!F10*(1-TAXx!F74*Inputs!F18) -> 45803.25988 | G19: =RABx!G10*(1-TAXx!G74*Inputs!G18) -> 48861.42228 | H19: =RABx!H10*(1-TAXx!H74*Inputs!H18) -> 52160.8785 | I19: =RABx!I10*(1-TAXx!I74*Inputs!I18) -> 55530.16118 | J19: =RABx!J10*(1-TAXx!J74*Inputs!J18) -> 58763.88135 | K19: RAB, TAX, INPUT11 | CALC
A20: add Forecast operating expenditure x TF x (1 - Corporate tax rate) | D20: =Inputs!D20*Inputs!D18*(1-TAXx!D74) -> 57776.06847 | E20: =Inputs!E20*Inputs!E18*(1-TAXx!E74) -> 60209.60297 | F20: =Inputs!F20*Inputs!F18*(1-TAXx!F74) -> 68627.63156 | G20: =Inputs!G20*Inputs!G18*(1-TAXx!G74) -> 72532.45281 | H20: =Inputs!H20*Inputs!H18*(1-TAXx!H74) -> 73898.58212 | I20: =Inputs!I20*Inputs!I18*(1-TAXx!I74) -> 72990.12145 | J20: =Inputs!J20*Inputs!J18*(1-TAXx!J74) -> 72752.22815 | K20: INPUT13, TAX, INPUT11 | CALC
A21: add (Closing deferred tax - Opening deferred tax) x (TF - 1) | D21: =(DTAXx!D23-DTAXx!D7)*(Inputs!D18-1) -> -354.4893271 | E21: =(DTAXx!E23-DTAXx!E7)*(Inputs!E18-1) -> -151.9541229 | F21: =(DTAXx!F23-DTAXx!F7)*(Inputs!F18-1) -> -234.4444374 | G21: =(DTAXx!G23-DTAXx!G7)*(Inputs!G18-1) -> -388.1985828 | H21: =(DTAXx!H23-DTAXx!H7)*(Inputs!H18-1) -> -455.8590019 | I21: =(DTAXx!I23-DTAXx!I7)*(Inputs!I18-1) -> -568.9495003 | J21: =(DTAXx!J23-DTAXx!J7)*(Inputs!J18-1) -> -667.4324235 | K21: DTAX, DTAX, INPUT11 | CALC
A22: Add
A23: Permanent differences | D23: =TAXx!D41 -> 133.389519 | E23: =TAXx!E41 -> 135.3163176 | F23: =TAXx!F41 -> 137.5183732 | G23: =TAXx!G41 -> 140.3259941 | H23: =TAXx!H41 -> 143.2204668 | I23: =TAXx!I41 -> 146.1419821 | J23: =TAXx!J41 -> 149.0897654 | K23: TAX
A24: add Regulatory tax adjustments | D24: =TAXx!D63 -> -25241.443 | E24: =TAXx!E63 -> -25699.93973 | F24: =TAXx!F63 -> -27126.83475 | G24: =TAXx!G63 -> -30431.72146 | H24: =TAXx!H63 -> -29007.71359 | I24: =TAXx!I63 -> -30818.59703 | J24: =TAXx!J63 -> -32795.06941 | K24: TAX
A25: less Utilised tax losses | D25: =TAXx!D31 -> 0 | E25: =TAXx!E31 -> 0 | F25: =TAXx!F31 -> 0 | G25: =TAXx!G31 -> 0 | H25: =TAXx!H31 -> 0 | I25: =TAXx!I31 -> 0 | J25: =TAXx!J31 -> 0 | K25: TAX
D26: =D23+D24-D25 -> -25108.05348 | E26: =E23+E24-E25 -> -25564.62341 | F26: -26989.31637 | G26: -30291.39546 | H26: -28864.49313 | I26: -30672.45505 | J26: -32645.97965 | K26: CALC
A27: multiply by (Corporate tax rate x TF) | D27: =TAXx!D74*Inputs!D18 -> 0.2898637187 | E27: =TAXx!E74*Inputs!E18 -> 0.2898637187 | F27: =TAXx!F74*Inputs!F18 -> 0.2898637187 | G27: =TAXx!G74*Inputs!G18 -> 0.2898637187 | H27: =TAXx!H74*Inputs!H18 -> 0.2893103444 | I27: =TAXx!I74*Inputs!I18 -> 0.2893103444 | J27: =TAXx!J74*Inputs!J18 -> 0.2893103444 | K27: TAX, INPUT11 | CALC
D28: =D26*D27 -> -7277.913751 | E28: =E26*E27 -> -7410.256811 | F28: -7823.22361 | G28: -8780.376534 | H28: -8350.796448 | I28: -8873.858535 | J28: -9444.819616 | K28: CALC
A29: Subtotal | D29: =D28+D19+D20+D21 -> 93601.00497 | E29: =E28+E19+E20+E21 -> 96828.90466 | F29: 106373.2234 | G29: 112225.3 | H29: 117252.8052 | I29: 119077.4746 | J29: 121403.8575 | K29: CALC
A30: divide by (TFrev - Corporate tax rate x TF) | D30: =Inputs!D19-TAXx!D74*Inputs!D18 -> 0.7386899018 | E30: =Inputs!E19-TAXx!E74*Inputs!E18 -> 0.7386899018 | F30: =Inputs!F19-TAXx!F74*Inputs!F18 -> 0.7386899018 | G30: =Inputs!G19-TAXx!G74*Inputs!G18 -> 0.7386899018 | H30: =Inputs!H19-TAXx!H74*Inputs!H18 -> 0.737646221 | I30: =Inputs!I19-TAXx!I74*Inputs!I18 -> 0.737646221 | J30: =Inputs!J19-TAXx!J74*Inputs!J18 -> 0.737646221 | K30: INPUT12, TAX, INPUT11 | CALC
A31: Subtotal B | D31: =D29/D30 -> 126712.1762 | E31: 131081.939 | F31: 144002.5417 | G31: 151924.7789 | H31: 158955.3391 | I31: 161428.9767 | J31: 164582.7688 | K31: CALC
A33: BBAR before tax (A+B) | D33: =D31+D16 -> 235275.13 | E33: 242827.4119 | F33: 264912.3536 | G33: 285860.6522 | H33: 290090.981 | I33: 301582.7807 | J33: 313438.7632 | K33: CALC
A35: Building Blocks Allowable Revenue After Tax (BBAR After Tax)
A37: BBAR before tax | D37: =D33 -> 235275.13 | E37: 242827.4119 | F37: 264912.3536 | G37: 285860.6522 | H37: 290090.981 | I37: 301582.7807 | J37: 313438.7632 | K37: BBAR
A38: less Forecast regulatory tax allowance | D38: =TAXx!D13 -> 20008.06898 | E38: =TAXx!E13 -> 20795.16325 | F38: =TAXx!F13 -> 22778.31492 | G38: =TAXx!G13 -> 25046.58454 | H38: =TAXx!H13 -> 24779.38672 | I38: =TAXx!I13 -> 26505.34047 | J38: =TAXx!J13 -> 28087.93314 | K38: TAX
A39: BBAR after tax | D39: =D37-D38 -> 215267.061 | E39: =E37-E38 -> 222032.2486 | F39: 242134.0386 | G39: 260814.0677 | H39: 265311.5943 | I39: 275077.4402 | J39: 285350.8301 | K39: CALC
A41: Regulatory Investment Value
A43: Total opening RAB value | D43: =RABx!D9 -> 1528013.011 | E43: =RABx!E9 -> 1600328.986 | F43: =RABx!F9 -> 1679024.34 | G43: =RABx!G9 -> 1858915.379 | H43: =RABx!H9 -> 1981819.379 | I43: =RABx!I9 -> 2110150.455 | J43: =RABx!J9 -> 2271544.396 | K43: RAB
A44: add Opening deferred tax | D44: =DTAXx!D7 -> -49319.42728 | E44: =DTAXx!E7 -> -59382.26608 | F44: =DTAXx!F7 -> -63695.76645 | G44: =DTAXx!G7 -> -70350.90781 | H44: =DTAXx!H7 -> -81370.64652 | I44: =DTAXx!I7 -> -95080.1845 | J44: =DTAXx!J7 -> -112190.8147 | K44: DTAX
A45: Regulatory investment value | D45: =D43+D44 -> 1478693.583 | E45: =E43+E44 -> 1540946.72 | F45: 1615328.573 | G45: 1788564.472 | H45: 1900448.732 | I45: 2015070.271 | J45: 2159353.582 | K45: CALC

Sheet MARx
A1: Maximum Allowable Revenue (MAR) Module
F4: CPP Regulatory Period
F5: =Inputs!F5 -> 2019 | G5: =Inputs!G5 -> 2020 | H5: =Inputs!H5 -> 2021 | I5: =Inputs!I5 -> 2022 | J5: =Inputs!J5 -> 2023 | K5: Input reference
A7: Maximum Allowable Revenue Before Tax (MAR Before Tax)
A9: Prior year's MAR | G9: =F12 -> 278558.7435 | H9: =G12 -> 284555.7775 | I9: =H12 -> 290523.5965 | J9: =I12 -> 296414.4078 | K9: CALC
A10: multiply by (1 + ΔCPI) | G10: =1+Inputs!G12 -> 1.021528795 | H10: =1+Inputs!H12 -> 1.020972405 | I10: =1+Inputs!I12 -> 1.020276533 | J10: =1+Inputs!J12 -> 1.02 | K10: INPUT7 | CALC
A11: multiply by (1 - X) | G11: =1-Inputs!$C$8 -> 1 | H11: =1-Inputs!$C$8 -> 1 | I11: =1-Inputs!$C$8 -> 1 | J11: =1-Inputs!$C$8 -> 1 | K11: INPUT3 | CALC
A12: MAR before tax | F12: 278558.7435 | G12: =G9*G10*G11 -> 284555.7775 | H12: =H9*H10*H11 -> 290523.5965 | I12: 296414.4078 | J12: 302342.696 | K12: CALC
A14: Maximum Allowable Revenue After Tax (MAR After Tax)
A16: MAR before tax | F16: =F12 -> 278558.7435 | G16: =G12 -> 284555.7775 | H16: =H12 -> 290523.5965 | I16: =I12 -> 296414.4078 | J16: =J12 -> 302342.696 | K16: MAR
A17: less Forecast regulatory tax allowance | F17: =TAXx!F13 -> 22778.31492 | G17: =TAXx!G13 -> 25046.58454 | H17: =TAXx!H13 -> 24779.38672 | I17: =TAXx!I13 -> 26505.34047 | J17: =TAXx!J13 -> 28087.93314 | K17: TAX
A18: MAR after tax | F18: =(F16-F17)*F26 -> 263083.8859 | G18: =(G16-G17)*G26 -> 266919.12 | H18: =(H16-H17)*H26 -> 272907.7609 | I18: =(I16-I17)*I26 -> 277184.8888 | J18: =(J16-J17)*J26 -> 281647.7293 | K18: INPUT12 | CALC
A20: Claw-back
A22: Claw-back | B22: =Inputs!$C$14 -> 0 | K22: INPUT9
A24: TFrev
A26: TFrev | F26: =Inputs!F19 -> 1.028553621 | G26: =Inputs!G19 -> 1.028553621 | H26: =Inputs!H19 -> 1.026956565 | I26: =Inputs!I19 -> 1.026956565 | J26: =Inputs!J19 -> 1.026956565 | K26: INPUT12
A28: Validation
A30: Check that NPV of BBAR after tax agrees to NPV of MAR after tax
A31: MAR after tax | F31: =F18 -> 263083.8859 | G31: =G18 -> 266919.12 | H31: =H18 -> 272907.7609 | I31: =I18 -> 277184.8888 | J31: =J18 -> 281647.7293 | K31: MAR
A32: Number of years used to discount to present value | F32: 1 | G32: =F32+1 -> 2 | H32: =G32+1 -> 3 | I32: =H32+1 -> 4 | J32: =I32+1 -> 5 | K32: CALC
A33: Present Value of MAR after tax using WACC | F33: =F31/(1+Inputs!F11)^F32 -> 245436.9679 | G33: =G31/(1+Inputs!G11)^G32 -> 232311.7319 | H33: =H31/(1+Inputs!H11)^H32 -> 224153.816 | I33: =I31/(1+Inputs!I11)^I32 -> 213211.136 | J33: =J31/(1+Inputs!J11)^J32 -> 202888.1451 | K33: CALC
A34: ="NPV of MAR after tax (A) ["&Inputs!$C$6&" year regulatory period]" -> NPV of MAR after tax (A) [5 year regulatory period] | F34: =SUM(OFFSET($F33:$J33,0,0,1,Inputs!$C$6)) -> 1118001.797
N35: MAR after tax results check (remove for final publication)
A36: BBAR after tax | F36: =BBARx!F39*F26 -> 249047.8421 | G36: =BBARx!G39*G26 -> 268261.2536 | H36: =BBARx!H39*H26 -> 272463.4837 | I36: =BBARx!I39*I26 -> 282492.5832 | J36: =BBARx!J39*J26 -> 293042.9084 | K36: INPUT12 | CALC | I-BBAR | O36: NPV | P36: 2019 | Q36: 2020 | R36: 2021 | S36: 2022 | T36: 2023
A37: Number of years used to discount to present value | F37: =F32 -> 1 | G37: =G32 -> 2 | H37: =H32 -> 3 | I37: =I32 -> 4 | J37: =J32 -> 5 | N37: Result | O37: =+F34 -> 1118001.797 | P37: =+F31 -> 263083.8859 | Q37: =+G31 -> 266919.12 | R37: 272907.7609 | S37: 277184.8888 | T37: 281647.7293
A38: Present Value of BBAR after tax using WACC | F38: =F36/(1+Inputs!F11)^F37 -> 232342.422 | G38: =G36/(1+Inputs!G11)^G37 -> 233479.8512 | H38: =H36/(1+Inputs!H11)^H37 -> 223788.9072 | I38: =I36/(1+Inputs!I11)^I37 -> 217293.8246 | J38: =J36/(1+Inputs!J11)^J37 -> 211096.792 | K38: INPUT6 | CALC
A39: ="NPV of BBAR after tax ["&Inputs!$C$6&" year regulatory period]" -> NPV of BBAR after tax [5 year regulatory period] | F39: =SUM(OFFSET($F38:$J38,0,0,1,Inputs!$C$6)) -> 1118001.797 | K39: CALC
A40: less/(add) Claw-back | F40: =B22 -> 0 | K40: MAR | N40: Scenario 1 | O40: 1133386.63 | P40: 266855.8759 | Q40: 270661.4006 | R40: 276638.7899 | S40: 280911.8054 | T40: 285364.6632
A41: ="NPV of BBAR after tax including Clawback (B) ["&Inputs!$C$6&" year regulatory period]" -> NPV of BBAR after tax including Clawback (B) [5 year regulatory period] | F41: =F39-F40 -> 1118001.797 | N41: Difference | O41: =O40-O$37 -> 15384.83265 | P41: =P40-P$37 -> 3771.990054 | Q41: 3742.280627 | R41: 3731.029023 | S41: 3726.916601 | T41: 3716.933905
A43: A-B (difference should be nil) | F43: =F41-F34 -> 0
N44: Scenario 2 | O44: 1118001.797 | P44: 263083.8859 | Q44: 266919.12 | R44: 272907.7609 | S44: 277184.8888 | T44: 281647.7293
N45: Difference | O45: =O44-O$37 -> 0 | P45: =P44-P$37 -> 0 | Q45: =Q44-Q$37 -> 0 | R45: =R44-R$37 -> 0 | S45: =S44-S$37 -> 0 | T45: =T44-T$37 -> 0

Sheet Output
A1: CPP Outputs Module
D4: Assessment Period | F4: CPP Regulatory Period
A5: Ref. | B5: Output Name | C5: Discrete Output | D5: =Inputs!D5 -> 2017 | E5: =Inputs!E5 -> 2018 | F5: =Inputs!F5 -> 2019 | G5: =Inputs!G5 -> 2020 | H5: =Inputs!H5 -> 2021 | I5: =Inputs!I5 -> 2022 | J5: =Inputs!J5 -> 2023 | K5: Description
A6: OUT1 | B6: CPP regulatory period | F6: =Inputs!F5 -> 2019 | G6: =Inputs!G5 -> 2020 | H6: =Inputs!H5 -> 2021 | I6: =Inputs!I5 -> 2022 | J6: =Inputs!J5 -> 2023 | K6: The period of continuous disclosure years in respect of which the customised price-quality path applies, and which follows the assessment period.
A7: OUT2 | B7: Allowed Controllable Opex | F7: =Inputs!F7 -> 0 | G7: =Inputs!G7 -> 0 | H7: =Inputs!H7 -> 0 | I7: =Inputs!I7 -> 0 | J7: =Inputs!J7 -> 0 | K7: A series of values ($000) for the CPP regulatory period where a single value for a disclosure year represents the allowance for operating expenditure for that year in categories specified by the Commission as controllable by the supplier.
A8: OUT3 | B8: Building Blocks Allowable Revenue Before Tax | D8: =BBARx!D33 -> 235275.13 | E8: =BBARx!E33 -> 242827.4119 | F8: =BBARx!F33 -> 264912.3536 | G8: =BBARx!G33 -> 285860.6522 | H8: =BBARx!H33 -> 290090.981 | I8: =BBARx!I33 -> 301582.7807 | J8: =BBARx!J33 -> 313438.7632 | K8: A series of values ($000) for the next period where a single value for a disclosure year represents the revenue required to be generated by a supplier in that year in compensate it for its economic costs for that year expressed in nominal terms and excluding claw-back or pass through or recoverable costs.
A9: OUT4 | B9: Building Blocks Allowable Revenue After Tax | D9: =BBARx!D39 -> 215267.061 | E9: =BBARx!E39 -> 222032.2486 | F9: =BBARx!F39 -> 242134.0386 | G9: =BBARx!G39 -> 260814.0677 | H9: =BBARx!H39 -> 265311.5943 | I9: =BBARx!I39 -> 275077.4402 | J9: =BBARx!J39 -> 285350.8301 | K9: A series of values ($000) for the next period where a single value for a disclosure year represents the Building Blocks Allowable Revenue Before Tax less the forecast regulatory tax allowance for that year.
A10: OUT5 | B10: Maximum Allowable Revenue Before Tax | F10: =MARx!F12 -> 278558.7435 | G10: =MARx!G12 -> 284555.7775 | H10: =MARx!H12 -> 290523.5965 | I10: =MARx!I12 -> 296414.4078 | J10: =MARx!J12 -> 302342.696 | K10: A series of values ($000) which determine the revenue path for a supplier for the CPP regulatory period whereby a single value for a disclosure year represents the maximum allowable revenue in nominal terms that the supplier may recover from customers through prices for that year allowing for claw-back amounts, and net of pass through costs and recoverable costs.
A11: OUT6 | B11: Maximum Allowable Revenue After Tax | F11: =MARx!F16-MARx!F17 -> 255780.4286 | G11: =MARx!G16-MARx!G17 -> 259509.193 | H11: =MARx!H16-MARx!H17 -> 265744.2097 | I11: =MARx!I16-MARx!I17 -> 269909.0673 | J11: =MARx!J16-MARx!J17 -> 274254.7628 | K11: A series of values ($000) for the CPP regulatory period where a single value for a disclosure year represents the maximum allowable revenue that the supplier may recover through prices for that year, less a forecast amount of tax.
A12: OUT7 | B12: ‘X’ factor | C12: =Inputs!C8 -> 0 | K12: A single value (percentage 3 d.p.) representing the rate of change allowed for the maximum allowable revenue path where the path is expressed in ‘CPI-X’ terms.
